[Event "Titled Tuesday Blitz April 25 Late 2023"]
[White "Karas, Marek"]
[Black "Ezat, Mohamed"]
[WhiteFideId "14928558"]
[BlackFideId "10600906"]
[WhiteElo "2233"]
[BlackElo "2386"]
[Result "1-0"]
[Round "07"]
[TimeControl "180+2"]
[Date "2023.04.25"]
[WhiteClock "0:00:08"]
[BlackClock "0:00:12"]

1. d4 {[%clk 0:02:59]}  Nf6 {[%clk 0:02:59]} 2. Nf3 {[%clk 0:02:55]}  g6 {[%clk 0:02:58]} 3. Nc3 {[%clk 0:02:53]}  d5 {[%clk 0:02:57]} 4. Bf4 {[%clk 0:02:52]}  Bg7 {[%clk 0:02:57]} 5. e3 {[%clk 0:02:45]}  O-O {[%clk 0:02:57]} 6. h3 {[%clk 0:02:40]}  c5 {[%clk 0:02:57]} 7. Nb5 {[%clk 0:02:36]}  Nc6 {[%clk 0:02:55]} 8. Nc7 {[%clk 0:02:27]}  Rb8 {[%clk 0:02:47]} 9. Nb5 {[%clk 0:02:27]}  Ra8 {[%clk 0:02:33]} 10. Nc7 {[%clk 0:02:27]}  e5 {[%clk 0:02:13]} 11. dxe5 {[%clk 0:02:16]}  Qxc7 {[%clk 0:02:12]} 12. exf6 {[%clk 0:02:15]}  Qa5+ {[%clk 0:02:12]} 13. c3 {[%clk 0:02:15]}  Bxf6 {[%clk 0:02:12]} 14. Be2 {[%clk 0:02:11]}  d4 {[%clk 0:02:08]} 15. O-O {[%clk 0:01:59]}  Rd8 {[%clk 0:02:06]} 16. cxd4 {[%clk 0:01:57]}  cxd4 {[%clk 0:02:06]} 17. exd4 {[%clk 0:01:53]}  Nxd4 {[%clk 0:02:05]} 18. Nxd4 {[%clk 0:01:52]}  Rxd4 {[%clk 0:02:04]} 19. Qc1 {[%clk 0:01:48]}  Be6 {[%clk 0:01:58]} 20. Be3 {[%clk 0:01:40]}  Rdd8 {[%clk 0:01:45]} 21. Bf3 {[%clk 0:01:26]}  Rac8 {[%clk 0:01:26]} 22. Qe1 {[%clk 0:01:23]}  Qxe1 {[%clk 0:01:26]} 23. Rfxe1 {[%clk 0:01:19]}  b6 {[%clk 0:01:26]} 24. Re2 {[%clk 0:00:59]}  Rc4 {[%clk 0:01:09]} 25. a4 {[%clk 0:00:54]}  Rb4 {[%clk 0:01:06]} 26. a5 {[%clk 0:00:47]}  h5 {[%clk 0:00:46]} 27. axb6 {[%clk 0:00:47]}  axb6 {[%clk 0:00:46]} 28. Kh2 {[%clk 0:00:28]}  Rd6 {[%clk 0:00:43]} 29. Ra8+ {[%clk 0:00:23]}  Kg7 {[%clk 0:00:42]} 30. Rc2 {[%clk 0:00:21]}  Bxb2 {[%clk 0:00:39]} 31. Rb8 {[%clk 0:00:16]}  Be5+ {[%clk 0:00:37]} 32. g3 {[%clk 0:00:12]}  h4 {[%clk 0:00:35]} 33. Kg2 {[%clk 0:00:10]}  hxg3 {[%clk 0:00:33]} 34. fxg3 {[%clk 0:00:11]}  Rd3 {[%clk 0:00:34]} 35. Rxb6 {[%clk 0:00:05]}  Rxb6 {[%clk 0:00:31]} 36. Bxb6 {[%clk 0:00:05]}  Bxh3+ {[%clk 0:00:31]} 37. Kxh3 {[%clk 0:00:03]}  Rxf3 {[%clk 0:00:31]} 38. Bf2 {[%clk 0:00:04]}  f5 {[%clk 0:00:30]} 39. Kg2 {[%clk 0:00:04]}  Rb3 {[%clk 0:00:31]} 40. Re2 {[%clk 0:00:05]}  Kf6 {[%clk 0:00:30]} 41. Rc2 {[%clk 0:00:05]}  Rd3 {[%clk 0:00:26]} 42. Rc6+ {[%clk 0:00:05]}  Kg5 {[%clk 0:00:26]} 43. Rc2 {[%clk 0:00:06]}  Kh5 {[%clk 0:00:23]} 44. Ra2 {[%clk 0:00:05]}  Rb3 {[%clk 0:00:21]} 45. Rc2 {[%clk 0:00:06]}  Rb4 {[%clk 0:00:20]} 46. Re2 {[%clk 0:00:05]}  Bd6 {[%clk 0:00:16]} 47. Kh3 {[%clk 0:00:05]}  Rb3 {[%clk 0:00:15]} 48. Kg2 {[%clk 0:00:03]}  g5 {[%clk 0:00:14]} 49. Rd2 {[%clk 0:00:03]}  Be5 {[%clk 0:00:12]} 50. Rd5 {[%clk 0:00:03]}  Bc3 {[%clk 0:00:09]} 51. Rxf5 {[%clk 0:00:03]}  Kg4 {[%clk 0:00:09]} 52. Rc5 {[%clk 0:00:02]}  Bd2 {[%clk 0:00:09]} 53. Rc4+ {[%clk 0:00:02]}  Kh5 {[%clk 0:00:09]} 54. g4+ {[%clk 0:00:03]}  Kg6 {[%clk 0:00:09]} 55. Rd4 {[%clk 0:00:03]}  Bf4 {[%clk 0:00:08]} 56. Ra4 {[%clk 0:00:03]}  Kf7 {[%clk 0:00:09]} 57. Ra7+ {[%clk 0:00:02]}  Ke6 {[%clk 0:00:09]} 58. Ra6+ {[%clk 0:00:03]}  Kd5 {[%clk 0:00:09]} 59. Ra5+ {[%clk 0:00:03]}  Ke4 {[%clk 0:00:10]} 60. Ra4+ {[%clk 0:00:04]}  Kd3 {[%clk 0:00:10]} 61. Rd4+ {[%clk 0:00:03]}  Kc2 {[%clk 0:00:10]} 62. Rc4+ {[%clk 0:00:04]}  Kd1 {[%clk 0:00:10]} 63. Rd4+ {[%clk 0:00:04]}  Ke2 {[%clk 0:00:10]} 64. Re4+ {[%clk 0:00:04]}  Kd3 {[%clk 0:00:11]} 65. Rd4+ {[%clk 0:00:05]}  Kc3 {[%clk 0:00:11]} 66. Rd7 {[%clk 0:00:04]}  Ra3 {[%clk 0:00:11]} 67. Rd8 {[%clk 0:00:04]}  Ra2 {[%clk 0:00:11]} 68. Kf3 {[%clk 0:00:03]}  Ra3 {[%clk 0:00:12]} 69. Ke4 {[%clk 0:00:03]}  Kc4 {[%clk 0:00:12]} 70. Rc8+ {[%clk 0:00:03]}  Kb5 {[%clk 0:00:12]} 71. Rc5+ {[%clk 0:00:03]}  Kb4 {[%clk 0:00:11]} 72. Rc8 {[%clk 0:00:03]}  Ra2 {[%clk 0:00:10]} 73. Bc5+ {[%clk 0:00:03]}  Kb5 {[%clk 0:00:10]} 74. Bd4 {[%clk 0:00:03]}  Ra4 {[%clk 0:00:10]} 75. Rc5+ {[%clk 0:00:03]}  Kb4 {[%clk 0:00:08]} 76. Rc8 {[%clk 0:00:03]}  Kb3 {[%clk 0:00:08]} 77. Kd3 {[%clk 0:00:02]}  Ka2 {[%clk 0:00:07]} 78. Rc2+ {[%clk 0:00:03]}  Kb3 {[%clk 0:00:06]} 79. Rb2+ {[%clk 0:00:02]}  Ka3 {[%clk 0:00:06]} 80. Rb7 {[%clk 0:00:03]}  Ra6 {[%clk 0:00:04]} 81. Bc5+ {[%clk 0:00:03]}  Ka2 {[%clk 0:00:04]} 82. Kc2 {[%clk 0:00:02]}  Be5 {[%clk 0:00:04]} 83. Ra7 {[%clk 0:00:03]}  Rxa7 {[%clk 0:00:03]} 84. Bxa7 {[%clk 0:00:03]}  Ka3 {[%clk 0:00:04]} 85. Kd3 {[%clk 0:00:04]}  Kb4 {[%clk 0:00:04]} 86. Ke4 {[%clk 0:00:04]}  Bf4 {[%clk 0:00:04]} 87. Kf5 {[%clk 0:00:05]}  Kc4 {[%clk 0:00:04]} 88. Bb6 {[%clk 0:00:04]}  Kd5 {[%clk 0:00:04]} 89. Bd8 {[%clk 0:00:04]}  Bg3 {[%clk 0:00:04]} 90. Bxg5 {[%clk 0:00:03]}  Kd6 {[%clk 0:00:05]} 91. Kf6 {[%clk 0:00:03]}  Kd7 {[%clk 0:00:04]} 92. Kf7 {[%clk 0:00:03]}  Be1 {[%clk 0:00:04]} 93. Bf6 {[%clk 0:00:03]}  Bd2 {[%clk 0:00:04]} 94. Kg6 {[%clk 0:00:02]}  Ke6 {[%clk 0:00:04]} 95. Bg5 {[%clk 0:00:02]}  Bc3 {[%clk 0:00:04]} 96. Bh6 {[%clk 0:00:01]}  Be5 {[%clk 0:00:05]} 97. Bg7 {[%clk 0:00:01]}  Bf4 {[%clk 0:00:05]} 98. Bf6 {[%clk 0:00:01]}  Bd2 {[%clk 0:00:05]} 99. Bh4 {[%clk 0:00:02]}  Bc3 {[%clk 0:00:06]} 100. Kh5 {[%clk 0:00:01]}  Be5 {[%clk 0:00:06]} 101. g5 {[%clk 0:00:01]}  Bf4 {[%clk 0:00:07]} 102. g6 {[%clk 0:00:02]}  Be5 {[%clk 0:00:08]} 103. Kh6 {[%clk 0:00:02]}  Kf5 {[%clk 0:00:08]} 104. Kh7 {[%clk 0:00:02]}  Bd4 {[%clk 0:00:08]} 105. Be7 {[%clk 0:00:02]}  Be5 {[%clk 0:00:08]} 106. Bf8 {[%clk 0:00:02]}  Ke6 {[%clk 0:00:08]} 107. Bg7 {[%clk 0:00:02]}  Bd6 {[%clk 0:00:08]} 108. Bd4 {[%clk 0:00:03]}  Bf8 {[%clk 0:00:09]} 109. Kg8 {[%clk 0:00:03]}  Bh6 {[%clk 0:00:09]} 110. Kh7 {[%clk 0:00:03]}  Bf8 {[%clk 0:00:09]} 111. Bc5 {[%clk 0:00:03]}  Bh6 {[%clk 0:00:06]} 112. Kxh6 {[%clk 0:00:04]}  Kd7 {[%clk 0:00:07]} 113. g7 {[%clk 0:00:04]}  Kc6 {[%clk 0:00:08]} 114. g8=Q {[%clk 0:00:05]}  Kxc5 {[%clk 0:00:09]} 115. Qe6 {[%clk 0:00:05]}  Kd4 {[%clk 0:00:10]} 116. Qf5 {[%clk 0:00:05]}  Ke3 {[%clk 0:00:09]} 117. Qg4 {[%clk 0:00:06]}  Kf2 {[%clk 0:00:09]} 118. Qh3 {[%clk 0:00:06]}  Kg1 {[%clk 0:00:09]} 119. Qf3 {[%clk 0:00:06]}  Kh2 {[%clk 0:00:09]} 120. Qg4 {[%clk 0:00:06]}  Kh1 {[%clk 0:00:09]} 121. Kg5 {[%clk 0:00:07]}  Kh2 {[%clk 0:00:10]} 122. Kf4 {[%clk 0:00:07]}  Kh1 {[%clk 0:00:11]} 123. Kf3 {[%clk 0:00:08]}  Kh2 {[%clk 0:00:12]} 124. Qg2# {[%clk 0:00:08]} 1-0


[Site "https://www.chess.com"]

[Event "Titled Tuesday Blitz April 25 Late 2023"]
[White "Flynn, Jacob"]
[Black "Filgueira, Hernan"]
[WhiteFideId "2509393"]
[BlackFideId "101770"]
[WhiteElo "2053"]
[BlackElo "2363"]
[Result "0-1"]
[Round "07"]
[TimeControl "180+2"]
[Date "2023.04.25"]
[WhiteClock "0:02:10"]
[BlackClock "0:02:24"]

1. d4 {[%clk 0:03:00]}  Nf6 {[%clk 0:02:58]} 2. c4 {[%clk 0:03:01]}  e6 {[%clk 0:02:57]} 3. g3 {[%clk 0:03:01]}  c5 {[%clk 0:02:57]} 4. d5 {[%clk 0:03:00]}  exd5 {[%clk 0:02:57]} 5. cxd5 {[%clk 0:03:01]}  d6 {[%clk 0:02:58]} 6. Nc3 {[%clk 0:03:01]}  g6 {[%clk 0:02:58]} 7. Bg2 {[%clk 0:03:02]}  Bg7 {[%clk 0:02:59]} 8. Nf3 {[%clk 0:03:03]}  O-O {[%clk 0:02:59]} 9. O-O {[%clk 0:03:04]}  Re8 {[%clk 0:02:59]} 10. Nd2 {[%clk 0:03:01]}  a6 {[%clk 0:02:58]} 11. a4 {[%clk 0:03:01]}  Nbd7 {[%clk 0:02:58]} 12. Nc4 {[%clk 0:03:01]}  Nb6 {[%clk 0:02:57]} 13. Na3 {[%clk 0:02:58]}  Bd7 {[%clk 0:02:56]} 14. a5 {[%clk 0:02:57]}  Nc8 {[%clk 0:02:56]} 15. Nc4 {[%clk 0:02:57]}  Bb5 {[%clk 0:02:55]} 16. Qb3 {[%clk 0:02:54]}  Bxc4 {[%clk 0:02:52]} 17. Qxc4 {[%clk 0:02:54]}  Na7 {[%clk 0:02:50]} 18. b4 {[%clk 0:02:29]}  Nd7 {[%clk 0:02:32]} 19. Rb1 {[%clk 0:02:23]}  Ne5 {[%clk 0:02:26]} 20. Qb3 {[%clk 0:02:19]}  c4 {[%clk 0:02:26]} 21. Qc2 {[%clk 0:02:18]}  Nb5 {[%clk 0:02:26]} 22. Be3 {[%clk 0:02:10]}  Nxc3 {[%clk 0:02:24]} 0-1


[Site "https://www.chess.com"]

[Event "Titled Tuesday Blitz April 25 Late 2023"]
[White "Przybylski, Wojciech"]
[Black "Tsyhanchuk, Stanislav"]
[WhiteFideId "1117599"]
[BlackFideId "13505130"]
[WhiteElo "2222"]
[BlackElo "2173"]
[Result "0-1"]
[Round "07"]
[TimeControl "180+2"]
[Date "2023.04.25"]
[WhiteClock "0:00:07"]
[BlackClock "0:00:21"]

1. e4 {[%clk 0:03:00]}  c5 {[%clk 0:03:00]} 2. Nf3 {[%clk 0:02:52]}  d6 {[%clk 0:02:59]} 3. d4 {[%clk 0:02:50]}  cxd4 {[%clk 0:03:00]} 4. Nxd4 {[%clk 0:02:50]}  Nf6 {[%clk 0:03:00]} 5. Nc3 {[%clk 0:02:50]}  a6 {[%clk 0:03:01]} 6. Be3 {[%clk 0:02:49]}  e5 {[%clk 0:03:01]} 7. Nb3 {[%clk 0:02:49]}  Be6 {[%clk 0:03:01]} 8. f3 {[%clk 0:02:48]}  Nbd7 {[%clk 0:03:00]} 9. Qd2 {[%clk 0:02:48]}  b5 {[%clk 0:03:01]} 10. O-O-O {[%clk 0:02:48]}  Nb6 {[%clk 0:03:01]} 11. Kb1 {[%clk 0:02:46]}  Nc4 {[%clk 0:02:56]} 12. Bxc4 {[%clk 0:02:41]}  bxc4 {[%clk 0:02:53]} 13. Nc1 {[%clk 0:02:35]}  Be7 {[%clk 0:02:53]} 14. N1e2 {[%clk 0:02:30]}  O-O {[%clk 0:02:52]} 15. Nd5 {[%clk 0:02:29]}  Bxd5 {[%clk 0:02:50]} 16. exd5 {[%clk 0:02:29]}  a5 {[%clk 0:02:45]} 17. Qc3 {[%clk 0:02:22]}  Qc7 {[%clk 0:02:44]} 18. g4 {[%clk 0:02:18]}  a4 {[%clk 0:02:43]} 19. a3 {[%clk 0:02:17]}  e4 {[%clk 0:02:35]} 20. fxe4 {[%clk 0:02:12]}  Nxe4 {[%clk 0:02:34]} 21. Qd4 {[%clk 0:02:10]}  Nf6 {[%clk 0:02:21]} 22. Nc3 {[%clk 0:02:03]}  Nd7 {[%clk 0:02:21]} 23. g5 {[%clk 0:02:01]}  Ne5 {[%clk 0:02:17]} 24. Rdf1 {[%clk 0:01:58]}  Qb7 {[%clk 0:02:09]} 25. h4 {[%clk 0:01:55]}  Rfb8 {[%clk 0:02:04]} 26. Bc1 {[%clk 0:01:54]}  Bf8 {[%clk 0:02:04]} 27. h5 {[%clk 0:01:51]}  Be7 {[%clk 0:01:48]} 28. Ne4 {[%clk 0:01:48]}  Rc8 {[%clk 0:01:43]} 29. Nc3 {[%clk 0:01:30]}  Rab8 {[%clk 0:01:42]} 30. Rhg1 {[%clk 0:01:29]}  Bd8 {[%clk 0:01:30]} 31. Qe4 {[%clk 0:01:22]}  Ba5 {[%clk 0:01:25]} 32. Rg3 {[%clk 0:01:21]}  Bxc3 {[%clk 0:01:07]} 33. Rxc3 {[%clk 0:01:20]}  Rc5 {[%clk 0:01:08]} 34. g6 {[%clk 0:00:22]}  Rb5 {[%clk 0:01:01]} 35. b4 {[%clk 0:00:19]}  cxb3 {[%clk 0:00:56]} 36. gxf7+ {[%clk 0:00:17]}  Nxf7 {[%clk 0:00:47]} 37. h6 {[%clk 0:00:07]}  bxc2+ {[%clk 0:00:46]} 38. Kxc2 {[%clk 0:00:07]}  Rxd5 {[%clk 0:00:20]} 39. Qb4 {[%clk 0:00:06]}  Rb5 {[%clk 0:00:18]} 40. Qxa4 {[%clk 0:00:05]}  Qg2+ {[%clk 0:00:15]} 41. Bd2 {[%clk 0:00:05]}  Qxf1 {[%clk 0:00:15]} 42. Rc7 {[%clk 0:00:03]}  Qb1+ {[%clk 0:00:15]} 43. Kc3 {[%clk 0:00:04]}  Qb3+ {[%clk 0:00:13]} 44. Qxb3 {[%clk 0:00:03]}  Rxb3+ {[%clk 0:00:14]} 45. Kc4 {[%clk 0:00:04]}  Ne5+ {[%clk 0:00:14]} 46. Kd5 {[%clk 0:00:04]}  Rd3+ {[%clk 0:00:15]} 47. Ke6 {[%clk 0:00:04]}  Rxd2 {[%clk 0:00:15]} 48. Rxg7+ {[%clk 0:00:04]}  Kh8 {[%clk 0:00:15]} 49. Rb7 {[%clk 0:00:05]}  Rxb7 {[%clk 0:00:14]} 50. Kf6 {[%clk 0:00:05]}  Ng4+ {[%clk 0:00:14]} 51. Ke6 {[%clk 0:00:06]}  Nxh6 {[%clk 0:00:15]} 52. Kf6 {[%clk 0:00:06]}  d5 {[%clk 0:00:15]} 53. Ke6 {[%clk 0:00:07]}  d4 {[%clk 0:00:16]} 54. Kd5 {[%clk 0:00:07]}  d3 {[%clk 0:00:17]} 55. Kc4 {[%clk 0:00:07]}  Rd1 {[%clk 0:00:17]} 56. Kc3 {[%clk 0:00:07]}  Rbb1 {[%clk 0:00:18]} 57. Kd4 {[%clk 0:00:07]}  d2 {[%clk 0:00:19]} 58. Kc3 {[%clk 0:00:08]}  Ra1 {[%clk 0:00:19]} 59. Kb2 {[%clk 0:00:07]}  Rdc1 {[%clk 0:00:18]} 60. Kb3 {[%clk 0:00:08]}  d1=Q+ {[%clk 0:00:19]} 61. Kb4 {[%clk 0:00:08]}  Qc2 {[%clk 0:00:20]} 62. Ka5 {[%clk 0:00:08]}  Qb2 {[%clk 0:00:21]} 63. Ka4 {[%clk 0:00:07]}  Rxa3# {[%clk 0:00:21]} 0-1


[Site "https://www.chess.com"]

[Event "Titled Tuesday Blitz April 25 Late 2023"]
[White "Kucuksari, Kaan"]
[Black "Womacka, Mathias"]
[WhiteFideId "6380166"]
[BlackFideId "4611390"]
[WhiteElo "2364"]
[BlackElo "2377"]
[Result "1-0"]
[Round "07"]
[TimeControl "180+2"]
[Date "2023.04.25"]
[WhiteClock "0:00:55"]
[BlackClock "0:00:37"]

1. e4 {[%clk 0:03:00]}  c5 {[%clk 0:02:58]} 2. Nf3 {[%clk 0:03:01]}  d6 {[%clk 0:02:58]} 3. d4 {[%clk 0:03:02]}  cxd4 {[%clk 0:02:58]} 4. Nxd4 {[%clk 0:03:03]}  Nf6 {[%clk 0:02:58]} 5. Nc3 {[%clk 0:03:04]}  a6 {[%clk 0:02:58]} 6. Be2 {[%clk 0:03:04]}  e5 {[%clk 0:02:57]} 7. Nb3 {[%clk 0:03:04]}  Be7 {[%clk 0:02:56]} 8. O-O {[%clk 0:03:04]}  O-O {[%clk 0:02:55]} 9. a4 {[%clk 0:03:03]}  Nc6 {[%clk 0:02:54]} 10. a5 {[%clk 0:03:03]}  Be6 {[%clk 0:02:51]} 11. Be3 {[%clk 0:02:57]}  Bxb3 {[%clk 0:02:41]} 12. Bb6 {[%clk 0:02:57]}  Bxc2 {[%clk 0:02:39]} 13. Qxc2 {[%clk 0:02:55]}  Qd7 {[%clk 0:02:38]} 14. Rfd1 {[%clk 0:02:51]}  Rac8 {[%clk 0:02:33]} 15. Qb3 {[%clk 0:02:42]}  g6 {[%clk 0:02:08]} 16. h3 {[%clk 0:02:34]}  Kg7 {[%clk 0:02:07]} 17. Ra4 {[%clk 0:02:21]}  h5 {[%clk 0:02:06]} 18. Nd5 {[%clk 0:02:10]}  Nxd5 {[%clk 0:02:01]} 19. exd5 {[%clk 0:02:11]}  Nb8 {[%clk 0:02:00]} 20. Bxh5 {[%clk 0:01:30]}  gxh5 {[%clk 0:01:53]} 21. Qg3+ {[%clk 0:01:28]}  Kh7 {[%clk 0:01:48]} 22. Qf3 {[%clk 0:01:27]}  Qxa4 {[%clk 0:01:37]} 23. Qxh5+ {[%clk 0:01:26]}  Kg7 {[%clk 0:01:37]} 24. Rd3 {[%clk 0:01:04]}  Rh8 {[%clk 0:00:39]} 25. Rg3+ {[%clk 0:01:03]}  Kf6 {[%clk 0:00:37]} 26. Qg5# {[%clk 0:00:55]} 1-0


[Site "https://www.chess.com"]

[Event "Titled Tuesday Blitz April 25 Late 2023"]
[White "Lewicki, Miroslaw"]
[Black "Yeritsyan, Hayk"]
[WhiteFideId "1113380"]
[BlackFideId "13307320"]
[WhiteElo "2212"]
[BlackElo "2241"]
[Result "1-0"]
[Round "07"]
[TimeControl "180+2"]
[Date "2023.04.25"]
[WhiteClock "0:02:18"]
[BlackClock "0:01:12"]

1. b3 {[%clk 0:02:57]}  d5 {[%clk 0:02:59]} 2. Bb2 {[%clk 0:02:57]}  Nf6 {[%clk 0:02:59]} 3. Nf3 {[%clk 0:02:57]}  Bf5 {[%clk 0:02:59]} 4. g3 {[%clk 0:02:58]}  e6 {[%clk 0:02:59]} 5. Bg2 {[%clk 0:02:59]}  h6 {[%clk 0:02:59]} 6. O-O {[%clk 0:02:59]}  c6 {[%clk 0:03:00]} 7. d4 {[%clk 0:03:00]}  Be7 {[%clk 0:03:00]} 8. Nbd2 {[%clk 0:03:00]}  O-O {[%clk 0:03:00]} 9. Re1 {[%clk 0:03:00]}  Bh7 {[%clk 0:03:00]} 10. c4 {[%clk 0:03:01]}  Na6 {[%clk 0:03:00]} 11. Ne5 {[%clk 0:02:59]}  Rc8 {[%clk 0:02:56]} 12. a3 {[%clk 0:02:58]}  Nb8 {[%clk 0:02:55]} 13. e4 {[%clk 0:02:57]}  Nbd7 {[%clk 0:02:55]} 14. Nxd7 {[%clk 0:02:47]}  Qxd7 {[%clk 0:02:52]} 15. e5 {[%clk 0:02:47]}  Ne8 {[%clk 0:02:52]} 16. Qg4 {[%clk 0:02:47]}  Bf5 {[%clk 0:02:39]} 17. Qh5 {[%clk 0:02:47]}  Bg6 {[%clk 0:02:37]} 18. Qf3 {[%clk 0:02:45]}  Nc7 {[%clk 0:02:36]} 19. Rad1 {[%clk 0:02:42]}  Rfd8 {[%clk 0:02:34]} 20. h4 {[%clk 0:02:41]}  a5 {[%clk 0:02:22]} 21. h5 {[%clk 0:02:41]}  Bh7 {[%clk 0:02:21]} 22. g4 {[%clk 0:02:41]}  Bg5 {[%clk 0:02:12]} 23. Qg3 {[%clk 0:02:41]}  Bc2 {[%clk 0:01:58]} 24. f4 {[%clk 0:02:38]}  Bxd1 {[%clk 0:01:48]} 25. fxg5 {[%clk 0:02:38]}  Bc2 {[%clk 0:01:49]} 26. gxh6 {[%clk 0:02:38]}  g6 {[%clk 0:01:44]} 27. Qc3 {[%clk 0:02:29]}  Be4 {[%clk 0:01:36]} 28. Bxe4 {[%clk 0:02:29]}  dxe4 {[%clk 0:01:35]} 29. Nxe4 {[%clk 0:02:30]}  Ne8 {[%clk 0:01:34]} 30. Rf1 {[%clk 0:02:25]}  Qe7 {[%clk 0:01:29]} 31. Bc1 {[%clk 0:02:18]}  Qh4 {[%clk 0:01:20]} 32. Qf3 {[%clk 0:02:17]}  Rxd4 {[%clk 0:01:12]} 33. Qxf7+ {[%clk 0:02:16]}  Kh8 {[%clk 0:01:13]} 34. Qf8+ {[%clk 0:02:16]}  Kh7 {[%clk 0:01:13]} 35. Rf7+ {[%clk 0:02:17]}  Ng7 {[%clk 0:01:12]} 36. Qxg7# {[%clk 0:02:18]} 1-0


[Site "https://www.chess.com"]

[Event "Titled Tuesday Blitz April 25 Late 2023"]
[White "Le Goff, Ronan"]
[Black "Korchmar, Vasiliy"]
[WhiteFideId "612073"]
[BlackFideId "24131750"]
[WhiteElo "2275"]
[BlackElo "2370"]
[Result "1-0"]
[Round "07"]
[TimeControl "180+2"]
[Date "2023.04.25"]
[WhiteClock "0:00:57"]
[BlackClock "0:00:02"]

1. Nf3 {[%clk 0:03:00]}  d5 {[%clk 0:02:58]} 2. c4 {[%clk 0:03:00]}  c6 {[%clk 0:02:57]} 3. d4 {[%clk 0:03:00]}  Nf6 {[%clk 0:02:56]} 4. Nc3 {[%clk 0:03:00]}  e6 {[%clk 0:02:51]} 5. e3 {[%clk 0:03:00]}  Nbd7 {[%clk 0:02:48]} 6. Qc2 {[%clk 0:03:00]}  Bd6 {[%clk 0:02:48]} 7. b3 {[%clk 0:02:58]}  O-O {[%clk 0:02:44]} 8. Bd3 {[%clk 0:02:57]}  e5 {[%clk 0:02:44]} 9. cxd5 {[%clk 0:02:53]}  cxd5 {[%clk 0:02:40]} 10. dxe5 {[%clk 0:02:51]}  Nxe5 {[%clk 0:02:39]} 11. Be2 {[%clk 0:02:50]}  Bg4 {[%clk 0:02:28]} 12. Bb2 {[%clk 0:02:42]}  Rc8 {[%clk 0:02:28]} 13. Rd1 {[%clk 0:02:39]}  Ne4 {[%clk 0:02:17]} 14. Nxe5 {[%clk 0:02:29]}  Bxe5 {[%clk 0:02:10]} 15. Bxg4 {[%clk 0:02:18]}  Bxc3+ {[%clk 0:02:09]} 16. Bxc3 {[%clk 0:02:03]}  Rxc3 {[%clk 0:02:10]} 17. Qb2 {[%clk 0:01:58]}  Rxe3+ {[%clk 0:01:59]} 18. fxe3 {[%clk 0:01:42]}  Qh4+ {[%clk 0:01:58]} 19. g3 {[%clk 0:01:42]}  Qxg4 {[%clk 0:01:48]} 20. O-O {[%clk 0:01:41]}  Qg5 {[%clk 0:01:28]} 21. Rf4 {[%clk 0:01:37]}  h5 {[%clk 0:01:22]} 22. Qd4 {[%clk 0:01:32]}  Qg6 {[%clk 0:00:59]} 23. Qxd5 {[%clk 0:01:26]}  Nc3 {[%clk 0:00:58]} 24. Qd2 {[%clk 0:01:21]}  Nxd1 {[%clk 0:00:56]} 25. Qxd1 {[%clk 0:01:22]}  Rc8 {[%clk 0:00:54]} 26. Rd4 {[%clk 0:01:15]}  Rc2 {[%clk 0:00:43]} 27. Rd8+ {[%clk 0:01:12]}  Kh7 {[%clk 0:00:43]} 28. Rd6 {[%clk 0:01:11]}  f6 {[%clk 0:00:42]} 29. Rd5 {[%clk 0:01:09]}  Kg8 {[%clk 0:00:17]} 30. Rxh5 {[%clk 0:01:01]}  Rc8 {[%clk 0:00:02]} 31. Qd5+ {[%clk 0:00:57]}  Qf7 {[%clk 0:00:02]} 32. Rh8+ {[%clk 0:00:57]} 1-0


[Site "https://www.chess.com"]

[Event "Titled Tuesday Blitz April 25 Late 2023"]
[White "Shapiro, Viktor"]
[Black "Adewumi, Tanitoluwa"]
[WhiteFideId "4175700"]
[BlackFideId "30966396"]
[WhiteElo "2152"]
[BlackElo "2283"]
[Result "1-0"]
[Round "07"]
[TimeControl "180+2"]
[Date "2023.04.25"]
[WhiteClock "0:00:15"]
[BlackClock "0:00:03"]

1. c4 {[%clk 0:03:00]}  e5 {[%clk 0:03:00]} 2. Nc3 {[%clk 0:03:00]}  Nc6 {[%clk 0:03:00]} 3. g3 {[%clk 0:03:01]}  Nf6 {[%clk 0:03:01]} 4. Bg2 {[%clk 0:03:01]}  g6 {[%clk 0:03:01]} 5. e3 {[%clk 0:02:58]}  Bg7 {[%clk 0:03:02]} 6. Nge2 {[%clk 0:02:59]}  d6 {[%clk 0:03:02]} 7. O-O {[%clk 0:02:59]}  O-O {[%clk 0:03:03]} 8. d4 {[%clk 0:02:59]}  exd4 {[%clk 0:03:03]} 9. exd4 {[%clk 0:03:00]}  Re8 {[%clk 0:02:54]} 10. h3 {[%clk 0:02:59]}  Ne7 {[%clk 0:02:49]} 11. g4 {[%clk 0:02:57]}  c6 {[%clk 0:02:43]} 12. Ng3 {[%clk 0:02:54]}  d5 {[%clk 0:02:44]} 13. g5 {[%clk 0:02:52]}  Nh5 {[%clk 0:02:42]} 14. Nxh5 {[%clk 0:02:52]}  gxh5 {[%clk 0:02:43]} 15. cxd5 {[%clk 0:02:47]}  cxd5 {[%clk 0:02:43]} 16. Qxh5 {[%clk 0:02:28]}  Bxd4 {[%clk 0:02:42]} 17. Be3 {[%clk 0:02:19]}  Bg7 {[%clk 0:02:37]} 18. Rad1 {[%clk 0:02:16]}  Be6 {[%clk 0:02:36]} 19. Be4 {[%clk 0:01:58]}  Ng6 {[%clk 0:02:11]} 20. Bxd5 {[%clk 0:01:56]}  Qc8 {[%clk 0:01:51]} 21. Bxe6 {[%clk 0:01:54]}  Qxe6 {[%clk 0:01:51]} 22. Nd5 {[%clk 0:01:41]}  Rac8 {[%clk 0:01:19]} 23. Bd4 {[%clk 0:01:23]}  Qxd5 {[%clk 0:00:40]} 24. Bxg7 {[%clk 0:01:22]}  Qe4 {[%clk 0:00:18]} 25. Rd4 {[%clk 0:00:45]}  Nf4 {[%clk 0:00:03]} 26. Rxe4 {[%clk 0:00:44]}  Nxh5 {[%clk 0:00:03]} 27. Rxe8+ {[%clk 0:00:44]}  Rxe8 {[%clk 0:00:04]} 28. Bc3 {[%clk 0:00:44]}  Nf4 {[%clk 0:00:04]} 29. Kh2 {[%clk 0:00:43]}  Re2 {[%clk 0:00:02]} 30. Kg3 {[%clk 0:00:42]}  Nd5 {[%clk 0:00:02]} 31. Bd4 {[%clk 0:00:37]}  b6 {[%clk 0:00:02]} 32. Rc1 {[%clk 0:00:37]}  h6 {[%clk 0:00:01]} 33. Rc8+ {[%clk 0:00:36]}  Kh7 {[%clk 0:00:02]} 34. Rh8+ {[%clk 0:00:35]}  Kg6 {[%clk 0:00:02]} 35. Rg8+ {[%clk 0:00:35]}  Kh5 {[%clk 0:00:01]} 36. gxh6 {[%clk 0:00:32]}  Kxh6 {[%clk 0:00:02]} 37. Ra8 {[%clk 0:00:31]}  Rd2 {[%clk 0:00:02]} 38. Be5 {[%clk 0:00:27]}  f6 {[%clk 0:00:02]} 39. Bd6 {[%clk 0:00:21]}  Rxb2 {[%clk 0:00:01]} 40. Rxa7 {[%clk 0:00:21]}  Kg6 {[%clk 0:00:02]} 41. a4 {[%clk 0:00:19]}  Nc3 {[%clk 0:00:02]} 42. Bf8 {[%clk 0:00:16]}  Ne4+ {[%clk 0:00:01]} 43. Kf3 {[%clk 0:00:16]}  Ng5+ {[%clk 0:00:02]} 44. Kg2 {[%clk 0:00:16]}  Rb3 {[%clk 0:00:02]} 45. h4 {[%clk 0:00:16]}  Ne6 {[%clk 0:00:02]} 46. Bd6 {[%clk 0:00:15]}  Kh5 {[%clk 0:00:03]} 47. Bg3 {[%clk 0:00:16]}  Kg4 {[%clk 0:00:03]} 48. Re7 {[%clk 0:00:15]}  Nd4 {[%clk 0:00:03]} 49. Re4+ {[%clk 0:00:15]}  Kh5 {[%clk 0:00:03]} 50. Rxd4 {[%clk 0:00:16]}  Rb4 {[%clk 0:00:03]} 51. Rxb4 {[%clk 0:00:15]} 1-0


[Site "https://www.chess.com"]